{"text_format":"3","workbook":"xlsx","n_sheets":2,"sheets":["КАК СЕ ИЗПОЛЗВА РАБОТНАТА КНИГА","ДНЕВНИК"],"not_rendered":{"defined_names":7},"read":"whole","date_system":"1900"}

{"sheet":"КАК СЕ ИЗПОЛЗВА РАБОТНАТА КНИГА","index":0,"n_rows":10,"n_cols":2,"rows_kept":10}
[null,"ИНСТРУКЦИИ"]
[null,"Използвайте работния лист ДНЕВНИК за изчисляване на оценките, когато за всяка задача се дава определен брой точки. "]
[null,"Инструкции: Не забравяйте да запишете архивни копия на своите оценки."]
[null,"1. Попълнете името на учебно заведение, информация за предмета, имената на учениците и ИД на учениците (по желание)."]
[null,"2. Настройте таблицата за оценка и общ успех така, че да съответства на типичната система за оценяване, която използвате."]
[null,"3. Попълнете имената на задачите или тестовете (напр. Тест 1), започвайки от клетка H8, заедно с колко точки се дава за тях. "]
[null,"4. Попълнете резултатите за всеки ученик на всяка задача или тест. Колоните \"Средно\", \"Резултат\", \"Оценка с буква\" и \"Общ успех\" се изчисляват автоматично, но можете да ги заместите, ако желаете. За да наградите с допълнителни кредитни точки, просто дайте повече точки на задача от общите възможни точки, изброени за тази задача."]
[null,"Използвайте командата \"Област за печат\" в менюто \"Оформление на страниците\", ако искате да промените какво ще се отпечата."]
[null,"Резултатите за оценките се базират на стандартна скала от проценти според общия брой точки, които са дадени в редове 8 и 9. Настройте желаните точки за всяка задача или тест, след което регулирайте процента, така че да върви със съответната оценка. Заместете клетките в \"Резултат\", за да направите промени ръчно."]
[null,"Въведете всяка задача или тест или точките, които се дават, в клетки от H8 до X9."]

{"sheet":"ДНЕВНИК","index":1,"n_rows":24,"n_cols":24,"rows_kept":24,"merged":[[1,1,2,6],[3,1,3,6],[4,1,6,6],[7,4,7,6],[8,4,8,6],[10,4,10,6],[11,4,11,6],[20,1,20,2],[20,3,20,4],[21,1,21,2],[21,3,21,4],[22,1,22,2],[22,3,22,4],[23,1,23,2],[23,3,23,4]]}
[null,"ИМЕТО НА ВАШЕТО УЧЕБНО ЗАВЕДЕНИЕ"]
[null,"Име на преподавателя"]
[{"$nulls":7},"Резултат",{"$f":"I4*ОбщоТочки","v":118},120,126,134,140,{"v":145.6666666666666,"d":"146"},154,160,166,174,180,186,194]
[null,"Предмет/проект",{"$nulls":5},"%",{"v":0.59,"d":"59%"},{"v":0.6,"d":"60%"},{"v":0.63,"d":"63%"},{"v":0.67,"d":"67%"},{"v":0.7,"d":"70%"},{"v":0.728333333333333,"d":"73%"},{"v":0.77,"d":"77%"},{"v":0.8,"d":"80%"},{"v":0.83,"d":"83%"},{"v":0.87,"d":"87%"},{"v":0.9,"d":"90%"},{"v":0.93,"d":"93%"},{"v":0.97,"d":"97%"}]
[null,"Година/семестър/тримесечие",{"$nulls":5},"Оценка с буква","F","D-","D","D+","C-","C","C+","B-","B","B+","A-","A","A+"]
[{"$nulls":7},"Общ успех",0,0.67,1,1.33,1.67,2,2.33,2.67,3,3.33,3.67,4,4]
[]
[{"$nulls":4},"Име на задача или тест",null,null,"ДР1","ДР2","Трм1"]
[{"$nulls":4},"Общо налични точки",null,null,50,50,100]
[]
[{"$nulls":4},"Общ брой задачи и тестове:",null,null,{"$f":"COUNTA(H8:AH8)","v":3}]
[{"$nulls":4},"Общо възможни точки:",null,null,{"$f":"SUM(H9:AH9)","v":200}]
[]
[null,"Име на учащ","Идентификационен № на ученика","Средно","Резултат","Оценка с буква","Общ успех","Колона6","Колона7","Колона8","Колона9","Колона10","Колона11","Колона12","Колона13","Колона14","Колона15","Колона16","Колона17","Колона18","Колона19","Колона20","Колона21","Колона22"]
[null,"Номер на ученик 1",null,{"$f":"IFERROR(IF(COUNT(Оценки[[#This Row],[Колона6]:[Колона22]])=0,\"\",SUM(Оценки[[#This Row],[Колона6]:[Колона22]])/ОбщоТочки),\"\")","v":{"v":0.91,"d":"91.0%"}},{"$f":"IF(COUNT(Оценки[[#This Row],[Колона6]:[Колона22]])=0,\"\",SUM(Оценки[[#This Row],[Колона6]:[Колона22]]))","v":182},{"$f":"IFERROR(IF(Оценки[[#This Row],[Средно]]<>\"\",HLOOKUP(Оценки[[#This Row],[Средно]]*ОбщоТочки,ТаблицаОценки,3),\"\"),0)","v":"A-"},{"$f":"IFERROR(IF(Оценки[[#This Row],[Средно]]<>\"\",HLOOKUP(Оценки[[#This Row],[Средно]]*ОбщоТочки,ТаблицаОценки,4),\"\"),0)","v":3.67},45,45,92]
[null,"Номер на ученик 2",null,{"$f":"IFERROR(IF(COUNT(Оценки[[#This Row],[Колона6]:[Колона22]])=0,\"\",SUM(Оценки[[#This Row],[Колона6]:[Колона22]])/ОбщоТочки),\"\")","v":{"v":1,"d":"100.0%"}},{"$f":"IF(COUNT(Оценки[[#This Row],[Колона6]:[Колона22]])=0,\"\",SUM(Оценки[[#This Row],[Колона6]:[Колона22]]))","v":200},{"$f":"IFERROR(IF(Оценки[[#This Row],[Средно]]<>\"\",HLOOKUP(Оценки[[#This Row],[Средно]]*ОбщоТочки,ТаблицаОценки,3),\"\"),0)","v":"A+"},{"$f":"IFERROR(IF(Оценки[[#This Row],[Средно]]<>\"\",HLOOKUP(Оценки[[#This Row],[Средно]]*ОбщоТочки,ТаблицаОценки,4),\"\"),0)","v":{"v":4,"d":"4.00"}},50,50,100]
[{"$nulls":3},{"$f":"IFERROR(IF(COUNT(Оценки[[#This Row],[Колона6]:[Колона22]])=0,\"\",SUM(Оценки[[#This Row],[Колона6]:[Колона22]])/ОбщоТочки),\"\")","v":""},{"$f":"IF(COUNT(Оценки[[#This Row],[Колона6]:[Колона22]])=0,\"\",SUM(Оценки[[#This Row],[Колона6]:[Колона22]]))","v":""},{"$f":"IFERROR(IF(Оценки[[#This Row],[Средно]]<>\"\",HLOOKUP(Оценки[[#This Row],[Средно]]*ОбщоТочки,ТаблицаОценки,3),\"\"),0)","v":""},{"$f":"IFERROR(IF(Оценки[[#This Row],[Средно]]<>\"\",HLOOKUP(Оценки[[#This Row],[Средно]]*ОбщоТочки,ТаблицаОценки,4),\"\"),0)","v":""}]
[{"$nulls":3},{"$f":"IFERROR(IF(COUNT(Оценки[[#This Row],[Колона6]:[Колона22]])=0,\"\",SUM(Оценки[[#This Row],[Колона6]:[Колона22]])/ОбщоТочки),\"\")","v":""},{"$f":"IF(COUNT(Оценки[[#This Row],[Колона6]:[Колона22]])=0,\"\",SUM(Оценки[[#This Row],[Колона6]:[Колона22]]))","v":""},{"$f":"IFERROR(IF(Оценки[[#This Row],[Средно]]<>\"\",HLOOKUP(Оценки[[#This Row],[Средно]]*ОбщоТочки,ТаблицаОценки,3),\"\"),0)","v":""},{"$f":"IFERROR(IF(Оценки[[#This Row],[Средно]]<>\"\",HLOOKUP(Оценки[[#This Row],[Средно]]*ОбщоТочки,ТаблицаОценки,4),\"\"),0)","v":""}]
[{"$nulls":3},{"$f":"IFERROR(IF(COUNT(Оценки[[#This Row],[Колона6]:[Колона22]])=0,\"\",SUM(Оценки[[#This Row],[Колона6]:[Колона22]])/ОбщоТочки),\"\")","v":""},{"$f":"IF(COUNT(Оценки[[#This Row],[Колона6]:[Колона22]])=0,\"\",SUM(Оценки[[#This Row],[Колона6]:[Колона22]]))","v":""},{"$f":"IFERROR(IF(Оценки[[#This Row],[Средно]]<>\"\",HLOOKUP(Оценки[[#This Row],[Средно]]*ОбщоТочки,ТаблицаОценки,3),\"\"),0)","v":""},{"$f":"IFERROR(IF(Оценки[[#This Row],[Средно]]<>\"\",HLOOKUP(Оценки[[#This Row],[Средно]]*ОбщоТочки,ТаблицаОценки,4),\"\"),0)","v":""}]
[]
[null,"Резюме на предмета",null,"Средно",null,"Оценка с буква","Общ успех","","","","","","","","","","",""]
[null," Средно",null,{"$f":"IFERROR(AVERAGE(Оценки[[#All],[Средно]]),0)","v":{"v":0.9550000000000001,"d":"95.5%"}},null,{"$f":"IFERROR(HLOOKUP(D22*ОбщоТочки,ТаблицаОценки,3),\"\")","v":"A"},{"$f":"IFERROR(AVERAGE(Оценки[[#All],[Общ успех]]),0)","v":{"v":3.835,"d":"3.84"}},"","","","","","","","","","","","","","","","",""]
[null," Най-висок резултат",null,{"$f":"IFERROR(MAX(Оценки[[#All],[Средно]]),0)","v":{"v":1,"d":"100.0%"}},null,{"$f":"IFERROR(HLOOKUP(D23*ОбщоТочки,ТаблицаОценки,3),\"\")","v":"A+"},{"$f":"IFERROR(MAX(Оценки[[#All],[Общ успех]]),0)","v":{"v":4,"d":"4.00"}},"","","","","","","","","","","","","","","","",""]
[null," Най-нисък резултат",null,{"$f":"IFERROR(MIN(Оценки[[#All],[Средно]]),0)","v":{"v":0.91,"d":"91.0%"}},null,{"$f":"IFERROR(HLOOKUP(D24*ОбщоТочки,ТаблицаОценки,3),\"\")","v":"A-"},{"$f":"IFERROR(MIN(Оценки[[#All],[Общ успех]]),0)","v":3.67},"","","","","","","","","","","","","","","","",""]